Cogmind - Beta 13 @@@ ROGUE MODE // 2024.04.28 @ 18:06:09 Player: Faunarr Result: Destroyed by TC-7R6(R) with Subdweller Machine Gun Performance ------------- Evolutions (0) 0 Regions Visited (2) 400 Robots Destroyed (22) 110 Value Destroyed (357) 357 Prototype IDs (0) 0 Alien Tech Used (0) 0 Bonus (0) 0 TOTAL SCORE: 867 Bonus ------- None Cogmind --------- Core Integrity 0/250 Matter 290/300 Energy 84/100 System Corruption 5% Temperature Cool (9) Movement Core (50) Location -10/Subcaves Parts ------- > --- POWER (1) -------- (None) > --- PROPULSION (2) --- (None) > --- UTILITY (2) ------ (None) > --- WEAPON (2) ------- Mining Claw > --- INVENTORY (5) ---- Small Storage Unit Terrain Scanner Seismic Detector Medium Laser Hammer Peak State ------------ > --- POWER ------------ Ion Engine > --- PROPULSION ------- Light Treads Light Treads > --- UTILITY ---------- High-capacity Storage Unit Improved Terrain Scanner > --- WEAPON ----------- EM Pulse Gun Mining Claw > --- INVENTORY -------- Ion Engine Compact Wheel Small Storage Unit Seismic Detector ECM Suite Medium Laser Light Assault Rifle Grenade Launcher Datajack Hammer [Rating: 10] Favorites ----------- Power Ion Engine Engine Ion Engine Propulsion Light Treads Treads Light Treads Leg Aluminum Leg Wheel Compact Wheel Utility High-capacity Storage Unit Device Seismic Detector Storage High-capacity Storage Unit Weapon Medium Laser Energy Gun Medium Laser Ballistic Gun Light Assault Rifle Impact Weapon Hammer Slashing Weapon Mining Claw Build | -11 -10 -10 ------- Run | Yrd Mat Sub Slots Evolved . | . . . Power . | . . . Propulsion . | . . . Utility . | . . . Weapon . | . . . Parts Attached 26 | 7 18 1 Power 2 | 1 1 . Engine 2 | 1 1 . Core . | . . . Reactor . | . . . Propulsion 4 | 2 2 . Treads 2 | 2 . . Leg 1 | . 1 . Wheel 1 | . 1 . Hover . | . . . Flight . | . . . Utility 8 | 2 6 . Device 6 | 1 5 . Storage 2 | 1 1 . Processor . | . . . Hackware . | . . . Protection . | . . . Artifact . | . . . Weapon 12 | 2 9 1 Energy Gun 4 | 1 3 . Energy Cannon . | . . . Ballistic Gun 2 | 1 1 . Ballistic Cannon . | . . . Launcher . | . . . Special Weapon . | . . . Impact Weapon 2 | . 2 . Slashing Weapon 4 | . 3 1 Piercing Weapon . | . . . Special Melee Weapon . | . . . Unidentified Prototypes . | . . . Corrupted Parts 1 | . 1 . System Corruption 2 | . 2 . Parts Lost 7 | . 5 2 Power 1 | . 1 . Propulsion 3 | . 2 1 Utility 2 | . 2 . Weapon 1 | . . 1 Highest Loss Streak 3 | . 3 2 To Critical Strikes . | . . . Average Slot Usage (%) 97 | . 97 61 Engine 13 | . 14 9 Treads 25 | . 25 . Wheel 1 | . 1 9 Device 12 | . 12 9 Storage 13 | . 14 9 Energy Gun 15 | . 15 . Ballistic Gun 5 | . 5 . Impact Weapon 2 | . 2 . Slashing Weapon 4 | . 4 14 Naked Turns 1 | . . 1 Heaviest Build 50 | 14 50 50 Greatest Support 40 | 40 40 16 Greatest Overweight (x) 3 | . 3 3 Average Overweight (x) 1 | . 1 1 Largest Inventory Capacity 20 | 8 20 20 Average Capacity 17 | 7 18 18 Most Carried 12 | 4 12 9 Average Carried 9 | 2 9 8 Final Capacity 20 | 8 20 5 Final Carried 9 | 4 9 5 Class Distribution -------------------- 100% | Mutant Dominant Class ---------------- Mutant | -10/Materials Mutant | -10/Subcaves Resources | -11 -10 -10 ----------- Run | Yrd Mat Sub Matter Collected 521 | 280 241 . Remotely . | . . . Salvage Created 648 | 110 538 . Parts 46 | 11 35 . Haulers Intercepted . | . . . Recyclers Shooed 1 | 1 . . Parts Field Recycled . | . . . Retrieved Matter . | . . . Parts Self-Destructed . | . . . Prevented . | . . . Kills | -11 -10 -10 ------- Run | Yrd Mat Sub Combat Hostiles Destroyed 13 | . 13 . Guns 13 | . 13 . Classes Destroyed 6 | 2 4 . Worker 1 | . 1 . Builder 5 | . 5 . Tunneler 2 | 2 . . Recycler 1 | 1 . . Swarmer 6 | . 6 . Grunt 7 | . 7 . Best Kill Streak 3 | 1 3 . Combat Bots Only 3 | . 3 . Max Kills in Single Turn 1 | 1 1 . Gunslinging . | . . . Exploded . | . . . Melee . | . . . Uniques/NPCs Destroyed . | . . . Combat | -11 -10 -10 -------- Run | Yrd Mat Sub Hostile Shots Fired 69 | . 59 10 Missed 22 | . 19 3 Damage Taken 941 | . 767 174 Core 259 | . 165 94 Absorbed by Shields . | . . . Core Remaining (%) 100 | 100 . . Volleys Fired 48 | 10 38 . Largest 2 | 2 2 . Hottest 90 | 70 90 . Shots Fired 99 | 20 79 . Gun 99 | 20 79 . Cannon . | . . . Launcher . | . . . Special . | . . . Kinetic 35 | 10 25 . Thermal 47 | 10 37 . Explosive . | . . . Electromagnetic 17 | . 17 . Robot Hit Streak 7 | 6 7 . Robot Miss Streak 3 | 1 3 . Penetration Max . | . . . Secondary Targets 1 | . 1 . Max Gunslinging Chain 1 | . 1 . Shots Hit Robots 70 | 14 56 . Core Hits 30 | 5 25 . Critical Kills . | . . . Critical Parts Destroyed 2 | . 2 . Critical Strikes 5 | . 5 . Burn 3 | . 3 . Smash 2 | . 2 . Melee Attacks 61 | . 61 . Impact 28 | . 28 . Slashing 33 | . 33 . Piercing . | . . . Sneak Attacks 4 | . 4 . Combat Hostiles . | . . . Follow-up Attacks . | . . . Damage Inflicted 943 | 142 801 . Guns 747 | 142 605 . Cannons . | . . . Explosions . | . . . Melee 196 | . 196 . Ramming . | . . . Kinetic 175 | 43 132 . Thermal 386 | 99 287 . Explosive . | . . . Electromagnetic 186 | . 186 . Impact 196 | . 196 . Slashing . | . . . Piercing . | . . . Highest Corruption 5 | . 5 5 Average Corruption 3 | . 3 5 Corruption Purged . | . . . Corruption Blocked . | . . . Effects 29 | . 29 . Message Errors 7 | . 7 . Matter Fused 8 | . 8 . Heat Flow Errors 3 | . 3 . Energy Discharges 3 | . 3 . Data Loss (minor) 1 | . 1 . Data Loss (major) 1 | . 1 . Misfires 5 | . 5 . Alerts 1 | . 1 . Overload Shots . | . . . Overflow Damage 149 | . 149 . Projectiles . | . . . Explosions . | . . . Melee 149 | . 149 . Knockbacks 1 | . 1 . Impact 1 | . 1 . Kinetic . | . . . Secondary . | . . . Self-Inflicted Damage . | . . . Shots . | . . . Rammed . | . . . Targets Rammed . | . . . Kicked . | . . . Crushed . | . . . Highest Temperature 269 | 100 269 . Average Temperature 68 | 36 75 . Received Heat Transfer 150 | . 132 18 Effects 1 | . 1 . Interference 1 | . 1 . Siege Activations . | . . . Robots Corrupted . | . . . Combat Hostiles . | . . . Parts Fried 8 | . 8 . Impact Corruptions 6 | . 6 . Robots Melted . | . . . Combat Hostiles . | . . . Parts Melted 2 | . 2 . Heat Transferred 1369 | 296 1073 . Parts Sabotaged . | . . . Parts Stolen . | . . . Parts Stripped . | . . . Power Chain Reactions . | . . . Alert | -11 -10 -10 ------- Run | Yrd Mat Sub Peak Influence 191 | 15 191 . Initial 9 | . 9 . Average 36 | 6 38 . Maximum Alert Level . | . . . Low Security (%) 100 | 100 100 . Level 1 . | . . . Level 2 . | . . . Level 3 . | . . . Level 4 . | . . . Level 5 . | . . . High Security . | . . . Max Security . | . . . Squads Dispatched 3 | . 3 . Investigation 2 | . 2 . Extermination . | . . . Reinforcement 1 | . 1 . Assault . | . . . Garrison . | . . . Intercept . | . . . Searches Triggered . | . . . Construction Impeded . | . . . Haulers Reinforced . | . . . Active Scanning Responses . | . . . Cargo Convoy Interrupts . | . . . Stealth | -11 -10 -10 --------- Run | Yrd Mat Sub Distress Signals 2 | . 2 . Communications Jammed . | . . . Distress Signals . | . . . Times Spotted 26 | . 22 4 Peak Tracking Total 4 | . 4 4 Tactical Retreats 1 | . 1 . Traps | -11 -10 -10 ------- Run | Yrd Mat Sub Traps Triggered 1 | . 1 . Indirectly . | . . . Trap Hack Attempts . | . . . Triggered . | . . . Disarmed . | . . . Reprogrammed . | . . . Reused . | . . . Traps Extracted . | . . . Installed . | . . . Triggered . | . . . Machines | -11 -10 -10 ---------- Run | Yrd Mat Sub Machines Disabled . | . . . Max in Single Turn . | . . . Machines Repaired . | . . . Machines Dismantled . | . . . Machines Sabotaged . | . . . Overloaded Fab Kills . | . . . Hacking | -11 -10 -10 --------- Run | Yrd Mat Sub Machines Accessed 3 | . 3 . Terminals 3 | . 3 . Fabricators . | . . . Repair Stations . | . . . Recycling Units . | . . . Scanalyzers . | . . . Garrison Access . | . . . Total Hacks 7 | . 7 . Successful 2 | . 2 . Failed 5 | . 5 . Catastrophic . | . . . Database Lockouts . | . . . Manual 7 | . 7 . Terminals 7 | . 7 . Fabricators . | . . . Repair Stations . | . . . Recycling Units . | . . . Scanalyzers . | . . . Garrison Access . | . . . Terminal Hacks . | . . . Fabricator Hacks . | . . . Repair Station Hacks . | . . . Recycling Unit Hacks . | . . . Scanalyzer . | . . . Garrison Access Hacks . | . . . Unauthorized Hacks 2 | . 2 . Terminals 2 | . 2 . Botnet 2 | . 2 . Fabricators . | . . . Repair Stations . | . . . Recycling Units . | . . . Scanalyzers . | . . . Garrison Access . | . . . Data Cores Recovered . | . . . Used . | . . . Hacking Detections 3 | . 3 . Full Trace Events 2 | . 2 . Feedback Events 1 | . 1 . Corruption 1 | . 1 . Feedback Blocked . | . . . Robot Schematics Acquired . | . . . Robots Built . | . . . Authchips . | . . . Time . | . . . Total Robot Build Rating . | . . . Part Schematics Acquired . | . . . Parts Built . | . . . Authchips . | . . . Time . | . . . Total Part Build Rating . | . . . Parts Repaired . | . . . Time . | . . . Parts Recycled . | . . . Recycled Matter . | . . . Retrieved Matter . | . . . Retrieved Components . | . . . Parts Scanalyzed . | . . . Part Schematics Acquired . | . . . Parts Damaged . | . . . Bothacking | -11 -10 -10 ------------ Run | Yrd Mat Sub Used RIF Installer . | . . . Robots Hacked . | . . . Non-combat . | . . . Combat . | . . . Robot Hacks Applied . | . . . Relay Couplers Released . | . . . Fabnet Peak Effective % . | . . . Robots Rewired . | . . . Allies Hacked . | . . . Hacks Repelled . | . . . Allies | -11 -10 -10 -------- Run | Yrd Mat Sub Total Allies . | . . . Largest Group . | . . . Highest-Rated Group . | . . . Highest-Rated Ally . | . . . Total Orders . | . . . Ally Attacks . | . . . Total Damage . | . . . Kills . | . . . Allies Corrupted . | . . . Allies Melted . | . . . Intel | -11 -10 -10 ------- Run | Yrd Mat Sub Robot Analysis Total . | . . . Derelict Logs Recovered . | . . . Drone Launches . | . . . Drone Recoveries . | . . . Exploration | -11 -10 -10 ------------- Run | Yrd Mat Sub Turns Passed 2179 | 130 2024 25 Spaces Moved 857 | 59 779 19 Core 7 | 5 . 2 Treads 725 | 54 671 . Legs . | . . . Wheels 125 | . 108 17 Hover . | . . . Flight . | . . . Fastest Speed 50 | 50 145 50 Average Speed 209 | 150 216 123 Slowest Speed 320 | 160 320 145 Overloaded Moves . | . . . Propulsion Burnouts . | . . . Robots Hopped . | . . . Cave-ins Triggered 1 | . 1 . Exploration Rate (%) 32 | 5 89 3 Regions Visited 2 Branch Regions 1 Pre-discovered Areas . | . . . Known Exits Taken . | . . . Unknown Exits Taken 2 | 1 1 . Scrap Searched . | . . . Spaces Dug 23 | . 23 . Terrain Destroyed 23 | . 23 . Melee 23 | . 23 . Projectile . | . . . AOE . | . . . Terrain Rammed . | . . . Walls Destroyed . | . . . Machines Disabled . | . . . Actions | -11 -10 -10 --------- Run | Yrd Mat Sub Total 1026 | 79 927 20 Wait 23 | . 23 . Move 855 | 58 778 19 Hop . | . . . Pick Up 12 | 4 8 . Fast Attach 11 | 7 3 1 Attach 5 | . 5 . Detach 1 | . 1 . Swap 10 | . 10 . Drop . | . . . Fire 48 | 10 38 . Melee 61 | . 61 . Ram . | . . . Kick . | . . . Crush . | . . . Escape Stasis . | . . . Rewire . | . . . Trap . | . . . Miscellaneous . | . . . Route ------- -11/Scrapyard -10/Materials (discovered 5 exits: [*Mat x2] / [*Min x2] / [*Sub]) -10/Subcaves History --------- Turn | Location | Event 9 | -11/Scrapyard | Discovered new exit (range 15) 131 | -11/Scrapyard | Entered Materials 303 | -10/Materials | Build established: Mutant 713 | -10/Materials | Discovered new exit (range 12) 1360 | -10/Materials | Discovered new exit (range 16) 1645 | -10/Materials | Crushed by falling debris 1645 | -10/Materials | Core integrity fell below 50% 1726 | -10/Materials | Discovered new exit (range 10) 1877 | -10/Materials | Discovered new exit (range 8) 1932 | -10/Materials | Lost 3 parts (1p1n1u) 2142 | -10/Materials | Discovered new exit (range 10) 2155 | -10/Materials | Entered Subcaves 2157 | -10/Subcaves | Ambushed by Subdwellers from Twisted Machinery 2175 | -10/Subcaves | Shifting Twisted Machinery released Piercing Trap 2178 | -10/Subcaves | Released all parts (5) 2179 | -10/Subcaves | Core integrity fell below 20% 2180 | -10/Subcaves | Destroyed by TC-7R6(R) with Subdweller Machine Gun Last Messages --------------- EM Pulse Gun. 02137_ System corrupted: EM Pulse Gun misfires. 02142_ EXIT=FOUND 02154_ R-06 Scavenger collects Corrupted Wheel. LOCATION=UNKNOWN AMBIENT_HEAT=-10 GOAL=ESCAPE 02157_ TC-7R6(R) emerges from the Twisted Machinery. 02159_ EM Pulse Gun destroyed. Piercing Trap falls loose from the Twisted Machinery. 02177_ Com. Wheel destroyed. 02178_ Released Aluminum Leg. 02178_ Released Imp. Terrain Scanner. 02178_ Released Ion Engine. 02178_ Released Hcp. Storage Unit. 02178_ Released Mining Claw. 02179_ Acquired Mining Claw. 02180_ Subatomizers dissect the Aluminum Leg. Map ----- +----------------------------------------------------+ | ???????????????????????????????????????????????? | | ???????????????????????????????????????????????? | | ???????????????????????????????????????????????? | | ???????????????????????????????????????????????? | | ???????????????????????????????????????????????? | | ???????????????????????????????????????????????? | | ???????????????????????????????????????????????? | | ???????????????????????????????????????????????? | | ???????????????????????????????????????????????? | | ???????????????????????????????????????????????? | | ???????????????????????????????????????????????? | | ???????????????????????????????????????????????? | | ???????????????????????????????????????????????? | | ???????????????????????????????????????????????? | | ???????????????????????????????????????????????? | | ???????????????????????????????????????????????? | | ??????????????????????????? ""?????????????????? | | ??????????????????????????"""?"????????????????? | | ??????????????????????????"" "?????????????????? | | ?????????????????????????? & ??????????????????? | | ?????????????????????????? ????"??????????????? | | ???????????????????????#?? #???"#??????????????? | | ????????????????????######"###"##??#???????????? | | ???????????????????##"#!# ##?????????????? | | ???????????????????#""]![ #?????????????? | | ????????????????????#"*=!@ RR #?????????????? | | ???????????????????# "##/ ## ##?????????????? | | ???????????????????#???# #???????????????????? | | ???????????????????????## ##?????#??#?????????? | | ???????????????????????# #??##??????????????? | | ????????? ?????????????# #?? #??????????????? | | ??????????????????????## #? #??????????????? | | ??????????????????????# ## #?????????#????? | | ???????????????????#### #???????????????? | | ???????????????????# # #??????????????? | | ???????????????????## # ####??????????????? | | ????????????????????#" # ##???????????????? | | ??????????????????? # # RR #?????#?????????? | | ?????????????????? ##" #### ##???????????????? | | ?????????????????#??## ??# #???????#????????? | | ?????????????????????## ??# ##???????????????? | | ??????????????????????# ?## ##??????????????? | | ??????????????????????## ?# #??????????????? | | ??????????????????????# #??????????????? | | ??????????????????????### ## ##??????????????? | | ????????????????????????###?# #??????#????????? | | ????????????????????????????# #???????????????? | | ????????????????????????????# ???????????????? | | ???????????????????????????? "" ???????????????? | | ????????????????????????????# #??????????????? | +----------------------------------------------------+ Best States ------------- Heat Dissipation 25 Energy Generation 10 Energy Capacity 250 Matter Stores 300 Matter Capacity 300 Sight Range 16 Terrain Scan Range 16 Terrain Scan Density 10 Evasion (%) 50 Recoil Reduction 2 Item Schematics ----------------- None Robot Schematics ------------------ None Fabricated ------------ Nothing Alien Tech Used ----------------- None Achievements -------------- None Challenges ------------ None Game ------ Seed RemoteActiveShifter Manual? 0 Play Time 00:14:06 Cumulative 19.4 hours Start 2024.04.28 @ 17:52:23 End 2024.04.28 @ 18:06:09 Sessions 1 Manual Loads 0 Difficulty Rogue Special Mode None Game No. 39 Rogue 39 Adventurer 0 Explorer 0 Win Type - Total 0 Types 0/0/0/0/0/0/0/0/0 Lore% 18 Gallery% 25 Achievement% 24 Wizard Run 0 Options --------- Layout 1 ASCII 0 Keyboard 0 Movement Vi Keybinds 0 Fullscreen 2 Font 24/Smallcaps Map View 50x35 Zoom Use 0% Tactical HUD 1 Map Filters NONE Filters NONE Steam 1 RUN: c6af4286-a06a-46b7-8d48-6ac0387367ae